fUST/lending_fUST_20240901
["ID","MTS","AMOUNT","RATE_DAILY","PERIOD"]
[336771069,1725131248715,-152.273631,0.0003315,14]
[336771070,1725131248737,-152.273631,0.0003315,14]
[336771071,1725131248759,-152.273631,0.0003315,14]
[336771072,1725131248782,-152.273631,0.0003315,14]
[336771073,1725131248803,-500.0,0.0003315,31]
[336771074,1725131248825,-666.51,0.0003315,31]
[336771075,1725131248850,-152.273631,0.0003315,14]
[336771076,1725131248871,-1815.43,0.0003315,31]
[336771077,1725131248893,-152.273631,0.0003315,14]
[336771078,1725131248915,-152.273631,0.0003315,14]
[336771079,1725131248937,-152.273631,0.0003315,14]
[336771080,1725131248964,-152.273631,0.0003315,14]
[336771081,1725131248986,-152.273623,0.0003315,14]
[336771082,1725131249008,-227.29244766,0.0003315,31]
[336771083,1725131249034,-500.0,0.0003315,31]
[336771084,1725131249056,-500.0,0.0003315,31]
[336771085,1725131249077,-500.0,0.0003315,31]
[336771086,1725131249097,-500.0,0.0003315,31]
[336771087,1725131249120,-500.0,0.0003315,31]
[336771088,1725131249142,-570.86,0.0003315,31]
[336771089,1725131249164,-400.65691045,0.0003315,31]
[336771090,1725131249187,-1815.45,0.0003315,31]
[336771091,1725131249208,-500.0,0.0003315,31]
[336771092,1725131249232,-500.0,0.0003315,31]
[336771093,1725131249257,-1005.949984,0.0003315,14]
[336771094,1725131249281,-1005.949984,0.0003315,14]
[336771095,1725131249302,-1005.949984,0.0003315,14]
[336771096,1725131249324,-1005.949984,0.0003315,14]
[336771097,1725131249346,-1005.949984,0.0003315,14]
[336771098,1725131249369,-1005.949984,0.0003315,14]
[336771099,1725131249392,-500.0,0.0003315,31]
[336771100,1725131249414,-1005.949984,0.0003315,14]
[336771101,1725131249438,-1005.949975,0.0003315,14]
[336771102,1725131249459,-500.0,0.0003315,31]
[336771103,1725131249479,-500.0,0.0003315,31]
[336771104,1725131249500,-500.0,0.0003315,31]
[336771105,1725131249521,-500.0,0.0003315,31]
[336771106,1725131249544,-500.0,0.0003315,31]
[336771107,1725131249566,-500.0,0.0003315,31]
[336771108,1725131249673,-500.0,0.0003315,31]
[336771109,1725131249694,-500.0,0.0003315,31]
[336771110,1725131249715,-675.89,0.0003315,31]
[336771111,1725131249737,-1496.03,0.0003315,31]
[336771112,1725131249759,-667.36,0.0003315,31]
[336771113,1725131249780,-500.0,0.0003315,31]
[336771114,1725131249802,-1052.18,0.0003315,31]
[336771115,1725131249824,-500.0,0.0003315,31]
[336771116,1725131249845,-500.0,0.0003315,31]
[336771117,1725131249866,-1069.06,0.0003315,31]
[336771118,1725131249888,-547.49,0.0003315,31]
[336771119,1725131249910,-500.0,0.0003315,31]
[336771120,1725131249935,-1127.24,0.0003315,31]
[336771121,1725131249959,-1039.81,0.0003315,31]
[336771122,1725131249982,-500.0,0.0003315,31]
[336771123,1725131250006,-500.0,0.0003315,31]
[336771124,1725131250034,-500.0,0.0003315,31]
[336771125,1725131250058,-685.76,0.0003315,31]
[336771126,1725131250080,-500.0,0.0003315,31]
[336771127,1725131250101,-1763.83,0.0003315,31]
[336771128,1725131250123,-500.0,0.0003315,31]
[336771129,1725131250151,-512.4,0.0003315,31]
[336771130,1725131250174,-500.0,0.0003315,31]
[336771131,1725131250196,-500.0,0.0003315,31]
[336771132,1725131250218,-500.0,0.0003315,31]
[336771133,1725131250239,-500.0,0.0003315,31]
[336771134,1725131250261,-500.0,0.0003315,31]
[336771135,1725131250285,-500.0,0.0003315,31]
[336771136,1725131250307,-500.0,0.0003315,31]
[336771137,1725131250331,-1498.82,0.0003315,31]
[336771138,1725131250355,-500.0,0.0003315,31]
[336771139,1725131250378,-632.914471,0.0003315,14]
[336771140,1725131250399,-632.914471,0.0003315,14]
[336771141,1725131250420,-632.914471,0.0003315,14]
[336771142,1725131250441,-632.914471,0.0003315,14]
[336771143,1725131250464,-632.914471,0.0003315,14]
[336771144,1725131250486,-632.914471,0.0003315,14]
[336771145,1725131250511,-632.914471,0.0003315,14]
[336771146,1725131250535,-632.914473,0.0003315,14]
[336771147,1725131250558,-709.5,0.0003315,31]
[336771148,1725131250579,-500.0,0.0003315,31]
[336771149,1725131250603,-4143.49,0.0003315,31]
[336771150,1725131250625,-578.43,0.0003315,31]
[336771151,1725131250649,-500.0,0.0003315,31]
[336771152,1725131250672,-500.0,0.0003315,31]
[336771153,1725131250694,-500.0,0.0003315,31]
[336771154,1725131250717,-500.0,0.0003315,31]
[336771155,1725131250739,-500.0,0.0003315,31]
[336771156,1725131250761,-500.0,0.0003315,31]
[336771157,1725131250782,-566.32,0.0003315,31]
[336771158,1725131250802,-500.0,0.0003315,31]
[336771159,1725131250825,-500.0,0.0003315,31]
[336771160,1725131250846,-500.0,0.0003315,31]
[336771161,1725131250867,-500.0,0.0003315,31]
[336771162,1725131250889,-500.0,0.0003315,2]
[336771163,1725131250909,-500.0,0.0003315,31]
[336771164,1725131250931,-500.0,0.0003315,31]
[336771165,1725131250959,-500.0,0.0003315,31]
[336771166,1725131250982,-626.41,0.0003315,31]
[336771167,1725131251004,-649.59,0.0003315,31]
[336771168,1725131251102,-627.65920148,0.0003315,31]
[336771169,1725131251125,-1037.78,0.0003315,31]
[336771170,1725131251148,-500.0,0.0003315,31]
[336771171,1725131251170,-530.21,0.0003315,31]
[336771172,1725131251192,-500.0,0.0003315,31]
[336771173,1725131251213,-500.0,0.0003315,31]
[336771174,1725131251236,-1555.78,0.0003315,31]
[336771175,1725131251261,-500.0,0.0003315,31]
[336771176,1725131251283,-500.0,0.0003315,31]
[336771177,1725131251305,-500.0,0.0003315,31]
[336771178,1725131251329,-664.08,0.0003315,31]
[336771179,1725131251352,-500.0,0.0003315,31]
[336771180,1725131251375,-500.0,0.0003315,31]
[336771181,1725131251396,-500.0,0.0003315,31]
[336771182,1725131251420,-1044.7,0.0003315,31]
[336771183,1725131251441,-500.0,0.0003315,31]
[336771184,1725131251464,-1747.12,0.0003315,31]
[336771185,1725131251492,-500.0,0.0003315,31]
[336771186,1725131251515,-500.0,0.0003315,31]
[336771187,1725131251539,-879.0,0.0003315,31]
[336771188,1725131251562,-500.0,0.0003315,31]
[336771189,1725131251584,-500.0,0.0003315,31]
[336771190,1725131251607,-651.46,0.0003315,31]
[336771191,1725131251632,-500.0,0.0003315,31]
[336771192,1725131251654,-500.0,0.0003315,31]
[336771193,1725131251675,-500.0,0.0003315,31]
[336771194,1725131251699,-500.0,0.0003315,31]
[336771195,1725131251725,-500.0,0.0003315,31]
[336771196,1725131251750,-500.0,0.0003315,31]
[336771197,1725131251772,-500.0,0.0003315,31]
[336771198,1725131251805,-580.23,0.0003315,31]
[336771199,1725131251849,-151.0,0.0003315,14]
[336771200,1725131251895,-151.0,0.0003315,14]
[336771201,1725131251933,-151.0,0.0003315,14]
[336771202,1725131251972,-500.0,0.0003315,31]
[336771203,1725131252012,-500.0,0.0003315,31]
[336771204,1725131252055,-500.0,0.0003315,31]
[336771205,1725131252089,-500.0,0.0003315,31]
[336771206,1725131252123,-813.59,0.0003315,30]
[336771207,1725131252155,-500.0,0.0003315,31]
[336771208,1725131252188,-891.07,0.0003315,31]
[336771209,1725131252223,-502.7626678,0.0003315,31]
[336771210,1725131252257,-664.24,0.0003315,31]
[336771211,1725131252290,-500.0,0.0003315,31]
[336771212,1725131252324,-1374.38,0.0003315,31]
[336771213,1725131252361,-500.0,0.0003315,31]
[336771214,1725131252395,-151.0,0.0003315,14]
[336771215,1725131252428,-151.0,0.0003315,14]
[336771216,1725131252462,-151.0,0.0003315,14]
[336771217,1725131252494,-151.0,0.0003315,14]
[336771218,1725131252527,-500.0,0.0003315,31]
[336771219,1725131252565,-640.65,0.0003315,31]
[336771220,1725131252597,-500.0,0.0003315,31]
[336771221,1725131252631,-500.0,0.0003315,31]
[336771222,1725131252664,-500.0,0.0003315,31]
[336771223,1725131252697,-943.22,0.0003315,31]
[336771224,1725131252729,-500.0,0.0003315,31]
[336771225,1725131252751,-500.0,0.0003315,31]
[336771226,1725131252775,-500.0,0.0003315,31]
[336771227,1725131252970,-691.75,0.0003315,31]
[336771228,1725131252994,-500.0,0.0003315,7]
[336771229,1725131253017,-500.0,0.0003315,31]
[336771230,1725131253040,-1000.0,0.0003315,7]
[336771231,1725131253065,-500.0,0.0003315,31]
[336771232,1725131253088,-847.0,0.0003315,31]
[336771233,1725131253109,-500.0,0.0003315,31]
[336771234,1725131253130,-500.0,0.0003315,31]
[336771235,1725131253152,-500.0,0.0003315,31]
[336771236,1725131253174,-285.43816,0.0003315,14]
[336771237,1725131253195,-500.0,0.0003315,31]
[336771238,1725131253216,-500.0,0.0003315,31]
[336771239,1725131253237,-527.78,0.0003315,31]
[336771240,1725131253259,-500.0,0.0003315,31]
[336771241,1725131253280,-500.0,0.0003315,31]
[336771242,1725131253305,-884.53,0.0003315,31]
[336771243,1725131253327,-501.32164761,0.0003315,31]
[336771244,1725131253348,-577.17,0.0003315,31]
[336771245,1725131253370,-831.07,0.0003315,31]
[336771246,1725131253392,-500.0,0.0003315,31]
[336771247,1725131253414,-976.97,0.0003315,31]
[336771248,1725131253436,-1053.56,0.0003315,31]
[336771249,1725131253458,-927.6,0.0003315,31]
[336771250,1725131253480,-151.0,0.0003315,14]
[336771251,1725131253503,-151.0,0.0003315,14]
[336771252,1725131253526,-151.0,0.0003315,14]
[336771253,1725131253551,-151.0,0.0003315,14]
[336771254,1725131253582,-3113.9,0.0003315,31]
[336771255,1725131253612,-801.14,0.0003315,31]
[336771256,1725131253636,-151.0,0.0003315,14]
[336771257,1725131253660,-151.0,0.0003315,14]
[336771258,1725131253684,-151.0,0.0003315,14]
[336771259,1725131253709,-151.0,0.0003315,14]
[336771260,1725131253733,-500.0,0.0003315,31]
[336771261,1725131253757,-500.0,0.0003315,31]
[336771262,1725131253782,-3499.05,0.0003315,31]
[336771263,1725131253806,-500.0,0.0003315,31]
[336771264,1725131253830,-500.0,0.0003315,31]
[336771265,1725131253855,-723.82,0.0003315,31]
[336771266,1725131253878,-500.0,0.0003315,31]
[336771267,1725131253901,-500.0,0.0003315,31]
[336771268,1725131253925,-949.09,0.0003315,31]
[336771269,1725131253952,-500.0,0.0003315,31]
[336771270,1725131253976,-3826.94,0.0003315,31]
[336771271,1725131254005,-965.32,0.0003315,31]
[336771272,1725131254029,-500.0,0.0003315,31]
[336771273,1725131254053,-500.0,0.0003315,31]
[336771274,1725131254076,-500.0,0.0003315,31]
[336771275,1725131254099,-500.0,0.0003315,31]
[336771276,1725131254125,-500.0,0.0003315,31]
[336771277,1725131254150,-3235.26,0.0003315,31]
[336771278,1725131254173,-500.0,0.0003315,31]
[336771279,1725131254195,-214.56284989,0.0003315,31]
[336771280,1725131254217,-620.08,0.0003315,31]
[336771281,1725131254239,-500.0,0.0003315,31]
[336771282,1725131254263,-1877.45,0.0003315,31]
[336771283,1725131254292,-500.0,0.0003315,31]
[336771284,1725131254316,-500.0,0.0003315,31]
[336771285,1725131254341,-500.0,0.0003315,31]
[336771286,1725131254365,-759.35,0.0003315,31]
[336771287,1725131254388,-1000.0,0.0003315,28]
[336771288,1725131254414,-1000.0,0.0003315,28]
[336771289,1725131254437,-1000.0,0.0003315,28]
[336771290,1725131254460,-500.0,0.0003315,31]
[336771291,1725131254483,-1000.0,0.0003315,28]
[336771292,1725131254507,-500.0,0.0003315,31]
[336771293,1725131254532,-1000.0,0.0003315,28]
[336771294,1725131254557,-1000.0,0.0003315,28]
[336771295,1725131254581,-1000.0,0.0003315,28]
[336771296,1725131254604,-1000.0,0.0003315,28]
[336771297,1725131254627,-500.0,0.0003315,31]
[336771298,1725131254651,-1000.0,0.0003315,28]
[336771299,1725131254676,-1000.0,0.0003315,28]
[336771300,1725131254698,-1000.0,0.0003315,28]
[336771301,1725131254722,-1000.0,0.0003315,28]
[336771302,1725131254746,-1000.0,0.0003315,28]
[336771303,1725131254770,-1000.0,0.0003315,28]
[336771304,1725131254793,-1000.0,0.0003315,28]
[336771305,1725131254815,-1000.0,0.0003315,28]
[336771306,1725131254843,-1000.0,0.0003315,28]
[336771307,1725131254867,-1000.0,0.0003315,28]
[336771308,1725131254891,-1000.0,0.0003315,28]
[336771309,1725131254912,-1000.0,0.0003315,28]
[336771310,1725131254934,-1000.0,0.0003315,28]
[336771311,1725131254959,-500.0,0.0003315,31]
[336771312,1725131254983,-1000.0,0.0003315,28]
[336771313,1725131255005,-1000.0,0.0003315,28]
[336771314,1725131255034,-1000.0,0.0003315,28]
[336771315,1725131255060,-1000.0,0.0003315,28]
[336771316,1725131255083,-1000.0,0.0003315,28]
[336771317,1725131255243,-1000.0,0.0003315,28]
[336771318,1725131255268,-1000.0,0.0003315,28]
[336771319,1725131255295,-500.0,0.0003315,31]
[336771320,1725131255323,-1000.0,0.0003315,28]
[336771321,1725131255345,-1000.0,0.0003315,28]
[336771322,1725131255369,-1000.0,0.0003315,28]
[336771323,1725131255391,-1000.0,0.0003315,28]
[336771324,1725131255414,-1000.0,0.0003315,28]
[336771325,1725131255437,-1000.0,0.0003315,28]
[336771326,1725131255460,-500.0,0.0003315,31]
[336771327,1725131255482,-1000.0,0.0003315,28]
[336771328,1725131255506,-814.59,0.0003315,31]
[336771329,1725131255530,-1000.0,0.0003315,28]
[336771330,1725131255554,-1000.0,0.0003315,28]
[336771331,1725131255577,-1000.0,0.0003315,28]
[336771332,1725131255600,-1000.0,0.0003315,28]
[336771333,1725131255623,-1000.0,0.0003315,28]
[336771334,1725131255646,-966.52,0.0003315,31]
[336771335,1725131255668,-1000.0,0.0003315,28]
[336771336,1725131255691,-882.94,0.0003315,31]
[336771337,1725131255714,-500.0,0.0003315,31]
[336771338,1725131255739,-1000.0,0.0003315,28]
[336771339,1725131255764,-1000.0,0.0003315,28]
[336771340,1725131255787,-500.0,0.0003315,31]
[336771341,1725131255810,-1000.0,0.0003315,28]
[336771342,1725131255836,-790.042579,0.0003315,28]
[336771343,1725131255859,-500.0,0.0003315,31]
[336771344,1725131255883,-2898.53,0.0003315,31]
[336771345,1725131255907,-5584.22,0.0003315,31]
[336771346,1725131255930,-500.0,0.0003315,31]
[336771347,1725131255957,-500.0,0.0003315,31]
[336771348,1725131255981,-2300.53,0.0003315,31]
[336771349,1725131256006,-500.0,0.0003315,31]
[336771350,1725131256052,-500.0,0.0003315,31]
[336771351,1725131256079,-1105.94,0.0003315,31]
[336771352,1725131256103,-500.0,0.0003315,31]
[336771353,1725131256129,-734.21,0.0003315,31]
[336771354,1725131256154,-500.0,0.0003315,31]
[336771355,1725131256181,-4330.93,0.0003315,31]
[336771356,1725131256206,-549.28,0.0003315,31]
[336771357,1725131256232,-502.2,0.0003315,31]
[336771358,1725131256258,-500.0,0.0003315,31]
[336771359,1725131256282,-500.0,0.0003315,31]
[336771360,1725131256309,-500.0,0.0003315,31]
[336771361,1725131256335,-1634.13,0.0003315,31]
[336771362,1725131256362,-500.0,0.0003315,31]
[336771363,1725131256385,-500.0,0.0003315,31]
[336771364,1725131256410,-500.0,0.0003315,31]
[336771365,1725131256434,-500.0,0.0003315,31]
[336771366,1725131256457,-500.0,0.0003315,31]
[336771367,1725131256482,-500.0,0.0003315,31]
[336771368,1725131256506,-539.9,0.0003315,31]
[336771369,1725131256529,-974.62,0.0003315,31]
[336771370,1725131256553,-510.71,0.0003315,31]
[336771371,1725131256575,-500.0,0.0003315,31]
[336771372,1725131256598,-640.42,0.0003315,31]
[336771373,1725131256621,-500.0,0.0003315,31]
[336771374,1725131256644,-927.24,0.0003315,31]
[336771375,1725131256666,-500.0,0.0003315,31]
[336771376,1725131256693,-1070.87,0.0003315,31]
[336771377,1725131256717,-5406.05,0.0003315,31]
[336771378,1725131256741,-500.0,0.0003315,31]
[336771379,1725131256766,-526.72,0.0003315,31]
[336771380,1725131256789,-500.0,0.0003315,31]
[336771381,1725131256811,-500.0,0.0003315,31]
[336771382,1725131256833,-747.62,0.0003315,31]
[336771383,1725131256859,-1604.45,0.0003315,31]
[336771384,1725131256882,-859.61,0.0003315,31]
[336771385,1725131256905,-500.0,0.0003315,31]
[336771386,1725131256928,-811.68,0.0003315,14]
[336771387,1725131256957,-802.64,0.0003315,31]
[336771388,1725131256981,-2999.50632152,0.0003315,8]
[336771389,1725131257694,-500.0,0.00032356,7]
[336771390,1725131257717,-306.8311024,0.00032536,2]
[336771391,1725131257740,-500.0,0.00032876,31]
[336771392,1725131257767,-4792.36897276,0.0003315,8]
[336771393,1725131257904,-500.0,0.00032876,31]
[336771394,1725131257928,-252.46927734,0.0003315,8]
[336771395,1725131258377,701.52,0.0002001,2]
[336771396,1725131301147,174.972194,0.00014247,2]
[336771605,1725131438380,-400.0,0.0003117,2]
[336771606,1725131438519,-513.84171493,0.00031171,2]
[336771607,1725131438774,-24386.15828507,0.00031171,2]
[336771608,1725131438784,-600.0,0.00031232,64]
[336771609,1725131438794,-500.0,0.00031583,7]
[336771610,1725131438805,-280.49325906,0.00032348,2]
[336771611,1725131438816,-500.0,0.00032448,7]
[336771612,1725131438826,-280.49325905,0.00032562,2]
[336771613,1725131438836,-500.0,0.00032607,7]
[336771614,1725131438847,-500.0,0.0003268,7]
[336771615,1725131438857,-10758.99537746,0.00032776,5]
[336771616,1725131438872,-28220.88375513,0.00032776,5]
[336771617,1725131438882,-280.49325905,0.00032776,2]
[336771618,1725131438892,-1667.66,0.00032866,3]
[336771619,1725131438903,-1389.71,0.00032866,3]
[336771620,1725131438912,-1972.38456247,0.00032876,15]
[336771621,1725131438922,-500.0,0.00032876,31]
[336771622,1725131438937,-501.93930048,0.00032876,31]
[336771623,1725131438947,-500.0,0.00032876,31]
[336771624,1725131438958,-500.0,0.00032876,31]
[336771625,1725131438967,-500.0,0.00032876,31]
[336771626,1725131438978,-500.0,0.00032876,31]
[336771627,1725131438989,-508.473122,0.00032876,31]
[336771628,1725131439001,-500.0,0.00032876,31]
[336771629,1725131439011,-500.0,0.00032876,31]
[336771630,1725131439020,-500.0,0.00032876,31]
[336771631,1725131439032,-500.0,0.00032876,31]
[336771632,1725131439043,-617.32,0.00032876,31]
[336771633,1725131439054,-503.32225029,0.00032876,31]
[336771634,1725131439064,-500.0,0.00032876,31]
[336771635,1725131439076,-503.13512186,0.00032876,31]
[336771636,1725131439085,-1000.81,0.00032876,31]
[336771637,1725131439095,-535.44653655,0.00032876,31]
[336771638,1725131439105,-500.0,0.00032876,31]
[336771639,1725131439114,-500.0,0.00032876,31]
[336771640,1725131439123,-500.0,0.00032876,31]
[336771641,1725131439132,-503.86334005,0.00032876,31]
[336771642,1725131439142,-500.0,0.00032876,31]
[336771643,1725131439152,-500.0,0.00032876,31]
[336771644,1725131439161,-500.0,0.00032876,31]
[336771645,1725131439172,-973.99,0.00032876,31]
[336771646,1725131439181,-2108.82,0.00032876,31]
[336771647,1725131439190,-500.0,0.00032876,31]
[336771648,1725131439200,-5118.87,0.00032876,31]
[336771649,1725131439211,-773.73,0.00032876,31]
[336771650,1725131439220,-1720.99,0.00032876,31]
[336771651,1725131439229,-809.36,0.00032876,31]
[336771652,1725131439239,-649.45,0.00032876,31]
[336771653,1725131439248,-500.0,0.00032876,31]
[336771654,1725131439258,-500.0,0.00032876,31]
[336771655,1725131439268,-500.0,0.00032876,31]
[336771656,1725131439277,-1054.14,0.00032876,31]
[336771657,1725131439286,-3970.02,0.00032876,31]
[336771658,1725131439295,-151.0,0.00032876,7]
[336771659,1725131439306,-151.0,0.00032876,7]
[336771660,1725131439316,-154.820893,0.00032876,7]
[336771661,1725131439325,-500.0,0.00032876,31]
[336771662,1725131439335,-500.0,0.00032876,31]
[336771663,1725131439344,-500.0,0.00032876,31]
[336771664,1725131439353,-2656.98,0.00032876,31]
[336771665,1725131439363,-500.0,0.00032876,31]
[336771666,1725131439372,-500.0,0.00032876,31]
[336771667,1725131439382,-1497.95,0.00032876,31]
[336771668,1725131439391,-893.4,0.00032876,31]
[336771669,1725131439400,-500.0,0.00032876,31]
[336771670,1725131439410,-1645.26,0.00032876,31]
[336771671,1725131439419,-500.0,0.00032876,31]
[336771672,1725131439430,-500.0,0.00032876,31]
[336771673,1725131439440,-500.0,0.00032876,31]
[336771674,1725131439449,-500.0,0.00032876,31]
[336771675,1725131439458,-500.0,0.00032876,31]
[336771676,1725131439468,-587.05,0.00032876,31]
[336771677,1725131439480,-500.0,0.00032876,31]
[336771678,1725131439489,-572.48252332,0.00032876,31]
[336771679,1725131439498,-500.0,0.00032876,31]
[336771680,1725131439508,-4955.55,0.00032876,31]
[336771681,1725131439517,-1013.78,0.00032876,31]
[336771682,1725131439527,-500.0,0.00032876,31]
[336771683,1725131439536,-1470.75,0.00032876,31]
[336771684,1725131439546,-981.63,0.00032876,31]
[336771685,1725131439556,-500.0,0.00032876,31]
[336771686,1725131439566,-620.44085915,0.00032876,31]
[336771687,1725131439575,-500.0,0.00032876,31]
[336771688,1725131439585,-685.32,0.00032876,31]
[336771689,1725131439594,-500.0,0.00032876,31]
[336771690,1725131439603,-500.0,0.00032876,31]
[336771691,1725131439613,-500.0,0.00032876,31]
[336771692,1725131439623,-500.0,0.00032876,31]
[336771693,1725131439634,-500.0,0.00032876,31]
[336771694,1725131439644,-500.0,0.00032876,31]
[336771695,1725131439654,-409.97389964,0.00032876,31]
[336771696,1725131439663,-500.0,0.00032876,31]
[336771697,1725131439674,-500.0,0.00032876,31]
[336771698,1725131439684,-500.0,0.00032876,31]
[336771699,1725131439693,-500.0,0.00032876,31]
[336771700,1725131439703,-522.88,0.00032876,31]
[336771701,1725131439712,-500.0,0.00032876,31]
[336771702,1725131439722,-500.0,0.00032876,31]
[336771703,1725131439731,-502.59503862,0.00032876,31]
[336771704,1725131439741,-610.97,0.00032876,31]
[336771705,1725131439750,-671.2,0.00032876,31]
[336771706,1725131439760,-503.5,0.00032876,31]
[336771707,1725131439770,-500.0,0.00032876,31]
[336771708,1725131439780,-29824.75,0.00032876,8]
[336771709,1725131439790,-500.0,0.00032876,31]
[336771710,1725131439801,-1960.16,0.00032876,31]
[336771711,1725131439811,-584.61,0.00032876,31]
[336771712,1725131439822,-1159.22,0.00032876,31]
[336771713,1725131439832,-500.0,0.00032876,31]
[336771714,1725131439845,-231.04270278,0.00032876,31]
[336771715,1725131439855,-500.0,0.00032876,31]
[336771716,1725131439865,-1319.57,0.00032876,31]
[336771717,1725131439875,-500.0,0.00032876,31]
[336771718,1725131439886,-576.9,0.00032876,31]
[336771721,1725131439896,-1761.55,0.00032876,21]
[336771724,1725131439905,-3825.17,0.00032876,31]
[336771726,1725131439914,-500.0,0.00032876,31]
[336771727,1725131439924,-735.75,0.00032876,31]
[336771728,1725131439934,-900.92,0.00032876,31]
[336771729,1725131439943,-5641.58,0.00032876,31]
[336771730,1725131439954,-1664.14,0.00032876,31]
[336771731,1725131439964,-500.0,0.00032876,31]
[336771732,1725131439973,-1394.75,0.00032876,31]
[336771733,1725131439983,-500.0,0.00032876,31]
[336771734,1725131439996,-919.96,0.00032876,31]
[336771735,1725131440006,-4866.12,0.00032876,31]
[336771736,1725131440015,-500.0,0.00032876,31]
[336771737,1725131440025,-2107.85,0.00032876,31]
[336771738,1725131440035,-500.0,0.00032876,31]
[336771739,1725131440044,-500.0,0.00032876,31]
[336771740,1725131440054,-551.06,0.00032876,31]
[336771741,1725131440063,-1208.36,0.00032876,7]
[336771742,1725131440074,-539.96,0.00032876,31]
[336771743,1725131440083,-777.29,0.00032876,31]
[336771744,1725131440092,-500.0,0.00032876,31]
[336771745,1725131440101,-500.0,0.00032876,31]
[336771747,1725131440111,-500.0,0.00032876,31]
[336771749,1725131440120,-576.85,0.00032876,31]
[336771751,1725131440129,-532.33585006,0.00032876,31]
[336771752,1725131440139,-1007.0,0.00032876,31]
[336771753,1725131440148,-5039.53,0.00032876,31]
[336771754,1725131440157,-610.36482158,0.00032876,31]
[336771755,1725131440167,-500.0,0.00032876,31]
[336771756,1725131440179,-500.0,0.00032876,31]
[336771757,1725131440188,-544.12,0.00032876,31]
[336771758,1725131440198,-500.0,0.00032876,31]
[336771759,1725131440208,-500.0,0.00032876,31]
[336771760,1725131440218,-500.0,0.00032876,31]
[336771761,1725131440227,-791.21,0.00032876,31]
[336771762,1725131440237,-500.0,0.00032876,31]
[336771763,1725131440246,-500.0,0.00032876,31]
[336771764,1725131440256,-500.0,0.00032876,31]
[336771765,1725131440266,-500.0,0.00032876,31]
[336771766,1725131440276,-1622.36,0.00032876,31]
[336771767,1725131440286,-2525.21,0.00032876,31]
[336771768,1725131440296,-3159.9,0.00032876,31]
[336771769,1725131440306,-500.0,0.00032876,31]
[336771770,1725131440315,-595.04,0.00032876,31]
[336771771,1725131440326,-500.0,0.00032876,31]
[336771772,1725131440335,-918.61,0.00032876,31]
[336771773,1725131440344,-500.0,0.00032876,2]
[336771774,1725131440354,-887.96,0.00032876,31]
[336771775,1725131440363,-500.0,0.00032876,31]
[336771776,1725131440373,-274.54512226,0.0003305,2]
[336771777,1725131440383,-7985.09722245,0.0003314,4]
[336771778,1725131440392,-500.0,0.00033149,7]
[336771779,1725131440402,-500.0,0.00033149,7]
[336771780,1725131440412,-366.01340386,0.00033149,7]
[336771781,1725131440421,-500.0,0.0003315,31]
[336771782,1725131440434,-500.0,0.0003315,31]
[336771783,1725131440444,-500.0,0.0003315,31]
[336771784,1725131440454,-500.0,0.0003315,31]